Cogmind - Beta 9.6 @@@ ROGUE MODE // 2020.05.10 @ 01:38:00 Player: Judas Result: Destroyed by G-47 Trooper with Particle Gun Performance ------------- Evolutions (2) 1000 Regions Visited (5) 1000 Robots Destroyed (58) 290 Value Destroyed (2038) 2038 Prototype IDs (1) 20 Alien Tech Used (0) 0 Bonus (904) 904 TOTAL SCORE: 5252 Bonus ------- High Alert Combat Kills 204 Entered Garrisons 200 Used RIF Installer 500 Cogmind --------- Core Integrity 0/550 Matter 124/300 Energy 60/100 System Corruption 1% Temperature Cool (547) Movement Hovering (360) Ox5 Location -8/Materials Parts ------- > --- POWER (1) -------- (None) > --- PROPULSION (4) --- Airjet > --- UTILITY (3) ------ Large Storage Unit Large Storage Unit Advanced Targeting Computer > --- WEAPON (3) ------- Gauss Rifle Flak Gun Gauss Cannon > --- INVENTORY (16) --- Light Nuclear Core Targeting Computer Transmission Jammer Relay Coupler [NC] (27) Relay Coupler [NC] (29) Relay Coupler [Swarmer] (35) Relay Coupler [Grunt] (24) Pulse Rifle Assault Rifle Assault Rifle Flak Gun Gauss Cannon Gauss Cannon Mini Grenade Launcher Heavy Rocket Launcher Mace Peak State ------------ > --- POWER ------------ Light Angular Momentum Engine > --- PROPULSION ------- Airjet Airjet Airjet Airjet > --- UTILITY ---------- Large Storage Unit Large Storage Unit Advanced Targeting Computer > --- WEAPON ----------- Gauss Rifle Gauss Cannon Gauss Cannon > --- INVENTORY -------- Light Nuclear Core Targeting Computer Transmission Jammer Relay Coupler [NC] Relay Coupler [NC] Relay Coupler [Swarmer] Relay Coupler [Grunt] Pulse Rifle Assault Rifle Assault Rifle Flak Gun Flak Gun Flak Gun Mini Grenade Launcher Heavy Rocket Launcher Mace [Rating: 38] Favorites ----------- Power Light Nuclear Core Engine Light Ion Engine Power Core Light Nuclear Core Propulsion Armored Wheel Leg Aluminum Leg Wheel Armored Wheel Hover Unit Airjet Utility Large Storage Unit Device Transmission Jammer Storage Large Storage Unit Processor Advanced Targeting Computer Weapon Flak Gun Energy Gun Precision Beam Rifle Ballistic Gun Flak Gun Ballistic Cannon Gauss Cannon Impact Weapon Mace Build | -11 -10 -9 -8 -8 -8 ------- Run | Scr Mat Mat Mat Gar Mat Slots Evolved 4 | . . 2 2 . . Power . | . . . . . . Propulsion 2 | . . 1 1 . . Utility 1 | . . 1 . . . Weapon 1 | . . . 1 . . Parts Attached 68 | . 15 11 17 6 19 Power 13 | . 6 3 1 1 2 Engine 9 | . 6 2 . . 1 Core 4 | . . 1 1 1 1 Reactor . | . . . . . . Propulsion 23 | . 4 5 8 . 6 Treads . | . . . . . . Leg . | . . . . . . Wheel 10 | . . 5 4 . 1 Hover 13 | . 4 . 4 . 5 Flight . | . . . . . . Utility 7 | . . 2 4 . 1 Device 2 | . . . 2 . . Storage 3 | . . 1 2 . . Processor 2 | . . 1 . . 1 Hackware . | . . . . . . Protection . | . . . . . . Artifact . | . . . . . . Weapon 25 | . 5 1 4 5 10 Energy Gun 2 | . . . . 2 . Energy Cannon . | . . . . . . Ballistic Gun 19 | . 5 1 4 3 6 Ballistic Cannon 3 | . . . . . 3 Launcher . | . . . . . . Special Weapon . | . . . . . . Impact Weapon 1 | . . . . . 1 Slashing Weapon . | . . . . . . Piercing Weapon . | . . . . . . Special Melee Weapon . | . . . . . . Unidentified Prototypes 1 | . . . . 1 . Parts Lost 16 | . 2 3 3 3 5 Power 2 | . . 1 . . 1 Propulsion 10 | . 2 2 2 1 3 Utility 1 | . . . 1 . . Weapon 3 | . . . . 2 1 Highest Loss Streak 5 | . 1 1 3 3 5 Average Slot Usage (%) 90 | . 84 80 95 94 94 Engine 5 | . 13 7 8 . 2 Core 4 | . . 3 . 9 6 Wheel 13 | . . 21 9 27 10 Hover 15 | . 25 7 22 4 20 Device 3 | . . . 8 9 . Storage 16 | . 14 13 18 18 18 Processor 3 | . . 5 . . 8 Energy Gun 1 | . . . . 5 . Ballistic Gun 24 | . 28 22 27 21 24 Naked Turns . | . . . . . . Heaviest Build 55 | 11 13 21 49 50 55 Greatest Support 44 | 20 20 44 44 36 36 Greatest Overweight (x) 16 | . 1 2 4 1 16 Average Overweight (x) . | . . . 1 1 1 Largest Inventory Capacity 16 | 6 6 8 16 16 16 Average Capacity 12 | 6 6 6 15 16 16 Most Carried 16 | 6 6 8 16 14 16 Average Carried 10 | 5 5 5 12 11 15 Final Capacity 16 | 6 6 8 16 16 16 Final Carried 16 | 6 6 8 13 14 16 Class Distribution -------------------- 49% | Mutant 48% | Gunner Dominant Class ---------------- Mutant | -10/Materials Mutant | -9/Materials Gunner | -8/Materials Gunner | -8/Garrison Gunner | -8/Materials Resources | -11 -10 -9 -8 -8 -8 ----------- Run | Scr Mat Mat Mat Gar Mat Matter Collected 1944 | 208 146 417 430 192 551 Remotely . | . . . . . . Salvage Created 2586 | 99 247 503 619 364 754 Parts 130 | 3 18 19 35 18 37 Haulers Intercepted 4 | . . 1 2 . 1 Recyclers Shooed 4 | . 2 1 1 . . Parts Field Recycled . | . . . . . . Retrieved Matter . | . . . . . . Parts Self-Destructed . | . . . . . . Prevented . | . . . . . . Kills | -11 -10 -9 -8 -8 -8 ------- Run | Scr Mat Mat Mat Gar Mat Combat Hostiles Destroyed 47 | . 7 8 11 7 14 Guns 46 | . 7 8 11 7 13 Cannons 1 | . . . . . 1 Classes Destroyed 10 | 1 2 3 3 . 1 Worker 1 | . . . 1 . . Builder 2 | . . . 1 . 1 Hauler 4 | . . 1 2 . 1 Recycler 4 | 1 1 1 . . 1 Swarmer 10 | . 5 . 3 . 2 Grunt 24 | . 2 5 6 6 5 Duelist 2 | . . 1 . . 1 Protector 1 | . . . . . 1 Sentry 6 | . . 2 1 . 3 Hunter 4 | . . . 1 1 2 Best Kill Streak 7 | 1 3 6 7 3 7 Combat Bots Only 6 | . 3 3 6 3 4 Max Kills in Single Turn 2 | 1 2 1 2 1 1 Gunslinging 1 | . 1 . . . . Exploded . | . . . . . . Melee . | . . . . . . Uniques/NPCs Destroyed . | . . . . . . Combat | -11 -10 -9 -8 -8 -8 -------- Run | Scr Mat Mat Mat Gar Mat Damage Taken 3336 | . 307 573 625 445 1386 Core 789 | . 79 154 96 75 385 Absorbed by Shields 24 | . . . . 24 . Core Remaining (%) 76 | 100 68 61 . . . Volleys Fired 140 | 4 20 30 27 22 37 Largest 3 | 2 2 2 3 3 3 Hottest 124 | 40 46 46 71 112 124 Shots Fired 354 | 8 40 60 81 57 108 Gun 338 | 8 40 60 81 57 92 Cannon 16 | . . . . . 16 Launcher . | . . . . . . Special . | . . . . . . Kinetic 339 | 8 40 60 81 42 108 Thermal 15 | . . . . 15 . Explosive . | . . . . . . Electromagnetic . | . . . . . . Robot Hit Streak 19 | 2 5 10 19 7 17 Robot Miss Streak 12 | 3 5 2 4 5 12 Penetration Max 1 | . . . . . 1 Secondary Targets 7 | . 1 1 3 1 1 Max Gunslinging Chain 1 | . 1 1 1 1 1 Shots Hit Robots 233 | 3 21 44 61 34 70 Core Hits 165 | 2 10 18 47 33 55 Critical Hits 3 | . 1 . . . 2 Critical Kills 1 | . . . . . 1 Critical Parts Destroyed 2 | . 1 . . . 1 Melee Attacks 2 | . . . . . 2 Impact 2 | . . . . . 2 Slashing . | . . . . . . Piercing . | . . . . . . Sneak Attacks . | . . . . . . Combat Hostiles . | . . . . . . Follow-up Attacks . | . . . . . . Damage Inflicted 4055 | 36 280 637 995 576 1531 Guns 3721 | 36 280 637 995 576 1197 Cannons 334 | . . . . . 334 Explosions . | . . . . . . Melee . | . . . . . . Ramming . | . . . . . . Kinetic 3871 | 36 280 637 995 392 1531 Thermal 184 | . . . . 184 . Explosive . | . . . . . . Electromagnetic . | . . . . . . Impact . | . . . . . . Slashing . | . . . . . . Piercing . | . . . . . . Highest Corruption 1 | . . . . . 1 Average Corruption 1 | . . . . . 1 Corruption Purged . | . . . . . . Effects 2 | . . . . . 2 Message Errors 1 | . . . . . 1 Targeting Errors 1 | . . . . . 1 Overload Shots . | . . . . . . Overflow Damage 26 | . . . . . 26 Projectiles 26 | . . . . . 26 Explosions . | . . . . . . Melee . | . . . . . . Knockbacks 6 | . . . . . 6 Impact . | . . . . . . Kinetic 6 | . . . . . 6 Secondary . | . . . . . . Self-Inflicted Damage . | . . . . . . Shots . | . . . . . . Rammed 1 | . 1 . . . . Targets Rammed 1 | . 1 . . . . Kicked . | . . . . . . Crushed . | . . . . . . Highest Temperature 647 | . 32 26 60 306 647 Average Temperature 74 | . 9 9 21 119 128 Received Heat Transfer 1134 | . 24 216 252 183 459 Effects 20 | . . . . 2 18 Shutdowns 2 | . . . . . 2 Energy Bleed 1 | . . . . . 1 Interference 5 | . . . . 2 3 Matter Decay 3 | . . . . . 3 Short Circuit 1 | . . . . . 1 Damage (minor) 2 | . . . . . 2 Damage (major) 4 | . . . . . 4 Damage (core) 2 | . . . . . 2 Siege Activations . | . . . . . . Robots Corrupted . | . . . . . . Combat Hostiles . | . . . . . . Parts Fried . | . . . . . . Impact Corruptions . | . . . . . . Robots Melted . | . . . . . . Combat Hostiles . | . . . . . . Parts Melted . | . . . . . . Heat Transferred 387 | . . . . 387 . Parts Sabotaged . | . . . . . . Parts Stolen . | . . . . . . Parts Stripped . | . . . . . . Power Chain Reactions . | . . . . . . Missiles Intercepted . | . . . . . . Alert | -11 -10 -9 -8 -8 -8 ------- Run | Scr Mat Mat Mat Gar Mat Peak Influence 644 | 5 170 313 436 586 644 Average Influence 292 | 3 61 173 218 489 459 Maximum Alert Level 2 | . . 1 2 2 2 Low Security (%) 41 | 100 100 59 62 . . Level 1 22 | . . 40 26 18 26 Level 2 36 | . . . 10 81 73 Level 3 . | . . . . . . Level 4 . | . . . . . . Level 5 . | . . . . . . High Security . | . . . . . . Max Security . | . . . . . . Squads Dispatched 11 | . 2 2 3 . 4 Investigation 1 | . . . . . 1 Extermination . | . . . . . . Reinforcement 8 | . 2 2 2 . 2 Assault 1 | . . . . . 1 Garrison 1 | . . . 1 . . Intercept . | . . . . . . Construction Impeded . | . . . . . . Haulers Reinforced . | . . . . . . Stealth | -11 -10 -9 -8 -8 -8 --------- Run | Scr Mat Mat Mat Gar Mat Distress Signals 9 | . 1 . 3 . 5 Communications Jammed 7 | . . . 7 . . Distress Signals 7 | . . . 7 . . Times Spotted 95 | . 19 12 25 9 30 Peak Tracking Total 12 | . 4 3 12 5 7 Tactical Retreats 6 | . 2 . 2 1 1 Traps | -11 -10 -9 -8 -8 -8 ------- Run | Scr Mat Mat Mat Gar Mat Traps Triggered 7 | . . . . 5 2 Indirectly . | . . . . . . Trap Hack Attempts . | . . . . . . Triggered . | . . . . . . Disarmed . | . . . . . . Reprogrammed . | . . . . . . Reused . | . . . . . . Traps Extracted . | . . . . . . Installed . | . . . . . . Triggered . | . . . . . . Machines | -11 -10 -9 -8 -8 -8 ---------- Run | Scr Mat Mat Mat Gar Mat Machines Disabled 4 | . 1 2 . 1 . Max in Single Turn 1 | . 1 1 . 1 . Garrison Relay 1 | . . . . 1 . Machines Sabotaged . | . . . . . . Garrisons Compromised . | . . . . . . Overloaded Fab Kills . | . . . . . . Fab Network Shutdowns . | . . . . . . Hacking | -11 -10 -9 -8 -8 -8 --------- Run | Scr Mat Mat Mat Gar Mat Machines Accessed 3 | . 2 . 1 . . Terminals 2 | . 2 . . . . Fabricators . | . . . . . . Repair Stations . | . . . . . . Recycling Units . | . . . . . . Scanalyzers . | . . . . . . Garrison Access 1 | . . . 1 . . Total Hacks 7 | . 5 . 2 . . Successful 3 | . 2 . 1 . . Failed 4 | . 3 . 1 . . Catastrophic . | . . . . . . Database Lockouts . | . . . . . . Manual 4 | . 4 . . . . Terminals 5 | . 5 . . . . Fabricators . | . . . . . . Repair Stations . | . . . . . . Recycling Units . | . . . . . . Scanalyzers . | . . . . . . Garrison Access 2 | . . . 2 . . Terminal Hacks 1 | . 1 . . . . Unreport Threat 1 | . 1 . . . . Fabricator Hacks . | . . . . . . Repair Station Hacks . | . . . . . . Recycling Unit Hacks . | . . . . . . Scanalyzer . | . . . . . . Garrison Access Hacks 1 | . . . 1 . . Unlock Access 1 | . . . 1 . . Unauthorized Hacks 1 | . 1 . . . . Terminals 1 | . 1 . . . . Botnet 1 | . 1 . . . . Fabricators . | . . . . . . Repair Stations . | . . . . . . Recycling Units . | . . . . . . Scanalyzers . | . . . . . . Garrison Access . | . . . . . . Data Cores Recovered . | . . . . . . Used . | . . . . . . Hacking Detections 2 | . 1 . 1 . . Full Trace Events . | . . . . . . Feedback Events . | . . . . . . Feedback Blocked . | . . . . . . Robot Schematics Acquired . | . . . . . . Robots Built . | . . . . . . Matter . | . . . . . . Time . | . . . . . . Total Robot Build Rating . | . . . . . . Part Schematics Acquired . | . . . . . . Parts Built . | . . . . . . Matter . | . . . . . . Time . | . . . . . . Total Part Build Rating . | . . . . . . Parts Repaired . | . . . . . . Time . | . . . . . . Parts Recycled . | . . . . . . Recycled Matter . | . . . . . . Retrieved Matter . | . . . . . . Retrieved Components . | . . . . . . Parts Scanalyzed . | . . . . . . Part Schematics Acquired . | . . . . . . Parts Damaged . | . . . . . . Bothacking | -11 -10 -9 -8 -8 -8 ------------ Run | Scr Mat Mat Mat Gar Mat Used RIF Installer 1 | . . . . 1 . Robots Hacked . | . . . . . . Non-combat . | . . . . . . Combat . | . . . . . . Robot Hacks Applied . | . . . . . . Relay Couplers Released 4 | . . . . 4 . Machine Destruction 4 | . . . . 4 . Robots Rewired . | . . . . . . Allies Hacked . | . . . . . . Hacks Repelled . | . . . . . . Allies | -11 -10 -9 -8 -8 -8 -------- Run | Scr Mat Mat Mat Gar Mat Total Allies . | . . . . . . Largest Group . | . . . . . . Highest-Rated Group . | . . . . . . Highest-Rated Ally . | . . . . . . Total Orders . | . . . . . . Ally Attacks . | . . . . . . Total Damage . | . . . . . . Kills . | . . . . . . Allies Corrupted . | . . . . . . Allies Melted . | . . . . . . Intel | -11 -10 -9 -8 -8 -8 ------- Run | Scr Mat Mat Mat Gar Mat Robot Analysis Total . | . . . . . . Derelict Logs Recovered . | . . . . . . Drone Launches . | . . . . . . Drone Recoveries . | . . . . . . Exploration | -11 -10 -9 -8 -8 -8 ------------- Run | Scr Mat Mat Mat Gar Mat Turns Passed 1823 | 38 323 351 286 354 471 Spaces Moved 1139 | 21 248 261 139 211 259 Core 1 | . . . . . 1 Treads . | . . . . . . Legs 40 | 21 19 . . . . Wheels 594 | . . 179 77 211 127 Hover 504 | . 229 82 62 . 131 Flight . | . . . . . . Fastest Speed 56 | 120 56 56 90 100 100 Average Speed 97 | 120 92 82 105 100 108 Slowest Speed 850 | 120 130 185 181 100 850 Overloaded Moves . | . . . . . . Propulsion Burnouts . | . . . . . . Robots Hopped . | . . . . . . Cave-ins Triggered . | . . . . . . Exploration Rate (%) 26 | 2 49 22 17 41 30 Regions Visited 5 Branch Regions . Pre-discovered Areas . | . . . . . . Known Exits Taken 1 | . . . 1 . . Unknown Exits Taken 3 | 1 1 1 . . . Scrap Searched . | . . . . . . Spaces Dug 1 | . . . . . 1 Terrain Destroyed 6 | . . . . . 6 Melee 1 | . . . . . 1 Projectile 5 | . . . . . 5 AOE . | . . . . . . Actions | -11 -10 -9 -8 -8 -8 --------- Run | Scr Mat Mat Mat Gar Mat Total 1571 | 28 308 346 218 308 363 Wait 108 | . 10 34 12 22 30 Move 1134 | 20 247 260 139 209 259 Hop . | . . . . . . Pick Up 33 | 2 4 6 12 6 3 Fast Attach 26 | . 5 4 8 . 9 Attach 16 | . 2 3 7 3 1 Detach 3 | . 1 . . . 2 Swap 26 | . 8 4 2 3 9 Drop 43 | 2 10 5 11 4 11 Fire 140 | 4 20 30 27 22 37 Melee 2 | . . . . . 2 Ram 1 | . 1 . . . . Kick . | . . . . . . Crush . | . . . . . . Escape Stasis 39 | . . . . 39 . Rewire . | . . . . . . Trap . | . . . . . . Miscellaneous . | . . . . . . Route ------- -11/Scrapyard -10/Materials -9/Materials -8/Materials -8/Garrison -8/Materials History --------- Turn | Location | Event 1 | -11/Scrapyard | Discovered new exit (range 3) 39 | -11/Scrapyard | Entered Materials 327 | -10/Materials | Build established: Mutant 359 | -10/Materials | Discovered new exit (range 3) 362 | -10/Materials | Entered another Materials area 362 | -9/Materials | Evolved 2 slots: Propulsion x1, Utility x1 627 | -9/Materials | Discovered new exit (range 7) 713 | -9/Materials | Entered another Materials area 713 | -8/Materials | Evolved 2 slots: Propulsion x1, Weapon x1 865 | -8/Materials | Garrison activated, responded to threat 976 | -8/Materials | Lost 3 parts (2n1u) 999 | -8/Materials | Identified exit to Garrison 999 | -8/Materials | Entered Garrison 1022 | -8/Garrison | Build established: Gunner 1099 | -8/Garrison | Triggered checkpoint 1148 | -8/Garrison | Triggered checkpoint 1196 | -8/Garrison | Discovered new exit (range 15) 1207 | -8/Garrison | Lost 3 parts (1n2w) 1215 | -8/Garrison | Installed Relay Interface Framework 1307 | -8/Garrison | Garrison Relay disabled 1353 | -8/Garrison | Entered Materials 1753 | -8/Materials | First assault squad dispatched 1802 | -8/Materials | Core integrity fell below 50% 1816 | -8/Materials | Core integrity fell below 20% 1824 | -8/Materials | Destroyed by G-47 Trooper with Particle Gun Last Messages --------------- 01814_ Gauss Cannon permanently disabled. 01814_ Overheating: Short circuit. 01816_ Overheating: Core damaged (-110). 01816_ K-01 Serf collects debris. 01817_ Power failure, Lgt. Angular Momentum Engine shutdown. 01817_ Overheating: Core damaged (-88). 01818_ Overheating: Flak Gun damaged (-34). 01818_ Flak Gun destroyed. 01819_ K-01 Serf collects debris. 01820_ Airjet destroyed. 01821_ K-01 Serf collects debris. 01822_ Lgt. Angular Momentum Engine destroyed. 01822_ Airjet destroyed. 01823_ Overheating: Gauss Rifle damaged (-1). 01823_ Overheating: Flak Gun damaged (-54). 01823_ Overheating: Adv. Targeting Computer damaged (-5). 01823_ Overheating: Lrg. Storage Unit damaged (-137). 01824_ K-01 Serf collects debris. 01824_ Acquired Gauss Cannon. 01824_ K-01 Serf collects debris. Map ----- +----------------------------------------------------+ | ??????????????# ## #??????# | | ??????????????# #?? """ ######## """ | | ??????????????# #???? "T" # """ # """ | | ??????????????# """ #?????? # """ # """ | | ??????????????# """ #########+# """ "# | | ??????????????# """ + T# """ | | ??????????????# # "# """ | | ??????????????# # ! # """ | | ??????????????########/########### ######## [ | | ???????????????????# #??????# #?????######### | | ???????????????????# #??????# #?????????????? | | ???????????????????# #??????# #?????????????? | | ???????????????????# #??????# #?????????????? | | ???????????????????# % #??????# #?????????????? | | ???????????????????# #??????# ?????????????? | | ???????????????????###+####??????? ?????????????? | | ?????????????????????# #?????????? ?????????????? | | ?????????????????????# #?????????? ?????????????? | | ?????????????????????# #?????????? ?????????????? | | ?????????????????????# #?????????? ?????????????? | | ????????????????????##%#####?????? ?????????????? | | ????????????????????## ==#?????? ?????????????? | | ????????????????????##=% ==#?????????????????????? | | ????????????????######kg=!!#?????????????????????? | | ??????????? w %kg!!!#?????????????????????? | | ?????????? ######!%@[#?????????????????????? | | ??????????????????????##%]=#?????????????????????? | | ???????????????????????#####?????????????????????? | | ?????????????????????????????????????????????????? | | ?????????????????????????????????????????????????? | | ?????????????????????????????????????????????????? | | ?????????????????????????????????????????????????? | | ?????????????????????????????????????????????????? | | ?????????????????????????????????????????????????? | | ?????????????????????????????????????????????????? | | ?????????????????????????????????????????????????? | | ?????????????????????????????????????????????????? | | ?????????????????????????????????????????????????? | | ?????????????????????????????????????????????????? | | ?????????????????????????????????????????????????? | | ?????????????????????????????????????????????????? | | ?????????????????????????????????????????????????? | | ?????????????????????????????????????????????????? | | ?????????????????????????????????????????????????? | | ?????????????????????????????????????????????????? | | ?????????????????????????????????????????????????? | | ?????????????????????????????????????????????????? | | ?????????????????????????????????????????????????? | | ?????????????????????????????????????????????????? | | ?????????????????????????????????????????????????? | +----------------------------------------------------+ Best States ------------- Heat Dissipation 31 Energy Generation 18 Energy Capacity 265 Matter Stores 300 Matter Capacity 300 Sight Range 16 Terrain Scan Density 10 Jamming Range 8 Evasion (%) 53 Targeting Accuracy 8 Melee Accuracy 5 Recoil Reduction 2 Item Schematics ----------------- None Robot Schematics ------------------ None Fabricated ------------ Nothing Alien Tech Used ----------------- None Achievements -------------- None Challenges ------------ None Game ------ Seed GuidedFieldBooster Manual? 0 Play Time 00:35:15 Cumulative 60.9 hours Start 2020.05.10 @ 01:04:21 End 2020.05.10 @ 01:38:00 Sessions 1 Manual Loads 0 Difficulty Rogue Special Mode None Game No. 109 Rogue 109 Adventurer 0 Explorer 0 Win Type - Total 0 Types 0/0/0/0/0/0/0 Lore% 31 Gallery% 43 Achievement% 32 Wizard Run 0 Options --------- ASCII 0 Keyboard 0 Movement Mouse Keybinds 0 Fullscreen 2 Font 18/SmallcapsGlow Map View 76x50 Tactical HUD 1 Map Filters NONE Filters NONE Steam X RUN: 9355347f-8fe8-4cb4-97b3-dc3a1829b163